[Event "Titled Tuesday Blitz December 13 Late 2022"]
[White "Winterberg, Lukas"]
[Black "Deac, Bogdan-Daniel"]
[WhiteFideId "24622702"]
[BlackFideId "1226380"]
[WhiteElo "2350"]
[BlackElo "2649"]
[Result "0-1"]
[Round "01"]
[TimeControl "180+1"]
[Date "2022.12.13"]
[WhiteClock "0:00:06"]
[BlackClock "0:00:32"]

1. d4 {[%clk 0:02:56]}  g6 {[%clk 0:03:00]} 2. c4 {[%clk 0:02:56]}  Bg7 {[%clk 0:03:00]} 3. Nc3 {[%clk 0:02:57]}  c5 {[%clk 0:03:00]} 4. d5 {[%clk 0:02:58]}  Bxc3+ {[%clk 0:02:59]} 5. bxc3 {[%clk 0:02:59]}  Qa5 {[%clk 0:02:59]} 6. Bd2 {[%clk 0:02:44]}  d6 {[%clk 0:02:47]} 7. e4 {[%clk 0:02:42]}  f5 {[%clk 0:02:47]} 8. exf5 {[%clk 0:02:39]}  Bxf5 {[%clk 0:02:46]} 9. Ne2 {[%clk 0:02:39]}  Bg4 {[%clk 0:02:35]} 10. Qb3 {[%clk 0:02:36]}  Qb6 {[%clk 0:02:33]} 11. Ng3 {[%clk 0:02:34]}  Nf6 {[%clk 0:02:33]} 12. Bd3 {[%clk 0:02:28]}  Nbd7 {[%clk 0:02:32]} 13. h3 {[%clk 0:02:25]}  Ne5 {[%clk 0:02:31]} 14. hxg4 {[%clk 0:02:15]}  Nxd3+ {[%clk 0:02:31]} 15. Ke2 {[%clk 0:02:15]}  Ne5 {[%clk 0:02:29]} 16. g5 {[%clk 0:02:11]}  Nfd7 {[%clk 0:02:28]} 17. f4 {[%clk 0:02:08]}  Nf7 {[%clk 0:02:28]} 18. Kf2 {[%clk 0:02:02]}  Qa6 {[%clk 0:02:23]} 19. Rhe1 {[%clk 0:01:54]}  Rf8 {[%clk 0:02:20]} 20. Kg1 {[%clk 0:01:50]}  Nb6 {[%clk 0:02:09]} 21. Re4 {[%clk 0:01:47]}  Kd7 {[%clk 0:02:09]} 22. Rae1 {[%clk 0:01:46]}  Rae8 {[%clk 0:02:09]} 23. Rb1 {[%clk 0:01:10]}  h6 {[%clk 0:02:03]} 24. gxh6 {[%clk 0:01:03]}  Nxh6 {[%clk 0:02:03]} 25. Re6 {[%clk 0:00:55]}  Nf5 {[%clk 0:01:55]} 26. Rxg6 {[%clk 0:00:47]}  Nxg3 {[%clk 0:01:54]} 27. Rxg3 {[%clk 0:00:47]}  Nxc4 {[%clk 0:01:34]} 28. Bc1 {[%clk 0:00:24]}  Kc7 {[%clk 0:01:33]} 29. Rg7 {[%clk 0:00:22]}  Rg8 {[%clk 0:01:22]} 30. Rxg8 {[%clk 0:00:20]}  Rxg8 {[%clk 0:01:22]} 31. Qc2 {[%clk 0:00:21]}  Nb6 {[%clk 0:01:07]} 32. Qe4 {[%clk 0:00:13]}  Re8 {[%clk 0:00:59]} 33. Rb2 {[%clk 0:00:12]}  Qc4 {[%clk 0:00:56]} 34. Qxc4 {[%clk 0:00:07]}  Nxc4 {[%clk 0:00:57]} 35. Re2 {[%clk 0:00:08]}  Nb6 {[%clk 0:00:57]} 36. Rd2 {[%clk 0:00:08]}  Rg8 {[%clk 0:00:56]} 37. Kf2 {[%clk 0:00:08]}  Na4 {[%clk 0:00:50]} 38. Rc2 {[%clk 0:00:07]}  b5 {[%clk 0:00:48]} 39. Kf3 {[%clk 0:00:07]}  a5 {[%clk 0:00:47]} 40. g4 {[%clk 0:00:08]}  b4 {[%clk 0:00:47]} 41. cxb4 {[%clk 0:00:07]}  axb4 {[%clk 0:00:48]} 42. g5 {[%clk 0:00:07]}  Nc3 {[%clk 0:00:48]} 43. Rd2 {[%clk 0:00:06]}  Kd7 {[%clk 0:00:45]} 44. Kg4 {[%clk 0:00:06]}  c4 {[%clk 0:00:37]} 45. a3 {[%clk 0:00:05]}  b3 {[%clk 0:00:35]} 46. Rd4 {[%clk 0:00:06]}  Rc8 {[%clk 0:00:34]} 47. g6 {[%clk 0:00:06]}  Ne2 {[%clk 0:00:33]} 48. Rd1 {[%clk 0:00:03]}  Nxc1 {[%clk 0:00:33]} 49. Rxc1 {[%clk 0:00:04]}  b2 {[%clk 0:00:34]} 50. Rb1 {[%clk 0:00:05]}  c3 {[%clk 0:00:34]} 51. g7 {[%clk 0:00:06]}  Rg8 {[%clk 0:00:33]} 52. Kf3 {[%clk 0:00:05]}  c2 {[%clk 0:00:32]} 53. Ke3 {[%clk 0:00:06]}  cxb1=Q {[%clk 0:00:32]} 0-1


[Site "https://www.chess.com"]

[Event "Titled Tuesday Blitz December 13 Late 2022"]
[White "Xiong, Jeffery"]
[Black "Ferreira, Vitor Hugo Vieira"]
[WhiteFideId "2047640"]
[BlackFideId "2119765"]
[WhiteElo "2726"]
[BlackElo "2146"]
[Result "1-0"]
[Round "01"]
[TimeControl "180+1"]
[Date "2022.12.13"]
[WhiteClock "0:00:19"]
[BlackClock "0:00:29"]

1. d4 {[%clk 0:02:38]}  d5 {[%clk 0:02:58]} 2. c4 {[%clk 0:02:37]}  c6 {[%clk 0:02:56]} 3. Nf3 {[%clk 0:02:37]}  Nf6 {[%clk 0:02:56]} 4. cxd5 {[%clk 0:02:37]}  cxd5 {[%clk 0:02:56]} 5. Nc3 {[%clk 0:02:37]}  Nc6 {[%clk 0:02:56]} 6. Bf4 {[%clk 0:02:37]}  Bf5 {[%clk 0:02:55]} 7. Qb3 {[%clk 0:02:33]}  Na5 {[%clk 0:02:55]} 8. Qa4+ {[%clk 0:02:33]}  Bd7 {[%clk 0:02:55]} 9. Qc2 {[%clk 0:02:33]}  Rc8 {[%clk 0:02:55]} 10. e3 {[%clk 0:02:32]}  e6 {[%clk 0:02:54]} 11. Bd3 {[%clk 0:02:32]}  Be7 {[%clk 0:02:49]} 12. O-O {[%clk 0:02:29]}  O-O {[%clk 0:02:49]} 13. Ne5 {[%clk 0:02:24]}  b5 {[%clk 0:02:47]} 14. a3 {[%clk 0:02:22]}  Nc4 {[%clk 0:02:46]} 15. Qe2 {[%clk 0:02:22]}  Qb6 {[%clk 0:02:41]} 16. Rfc1 {[%clk 0:02:09]}  Rfd8 {[%clk 0:02:39]} 17. a4 {[%clk 0:01:52]}  b4 {[%clk 0:02:36]} 18. Nb5 {[%clk 0:01:53]}  a6 {[%clk 0:02:26]} 19. Bxc4 {[%clk 0:01:32]}  dxc4 {[%clk 0:02:23]} 20. Nxc4 {[%clk 0:01:30]}  Rxc4 {[%clk 0:02:22]} 21. Rxc4 {[%clk 0:01:31]}  axb5 {[%clk 0:02:21]} 22. Bc7 {[%clk 0:01:32]}  Qa6 {[%clk 0:02:09]} 23. Bxd8 {[%clk 0:01:32]}  bxc4 {[%clk 0:02:09]} 24. Bxe7 {[%clk 0:01:31]}  Nd5 {[%clk 0:02:08]} 25. Bc5 {[%clk 0:01:25]}  h6 {[%clk 0:02:04]} 26. e4 {[%clk 0:01:23]}  Nf4 {[%clk 0:02:01]} 27. Qd2 {[%clk 0:01:23]}  Nd3 {[%clk 0:02:01]} 28. Bxb4 {[%clk 0:01:07]}  Bxa4 {[%clk 0:01:55]} 29. Bc3 {[%clk 0:01:07]}  Qc6 {[%clk 0:01:53]} 30. f3 {[%clk 0:01:06]}  Bb5 {[%clk 0:01:46]} 31. Ra5 {[%clk 0:01:07]}  Qb6 {[%clk 0:01:43]} 32. Qe3 {[%clk 0:00:55]}  e5 {[%clk 0:01:42]} 33. Ra1 {[%clk 0:00:51]}  Nf4 {[%clk 0:01:38]} 34. Re1 {[%clk 0:00:45]}  exd4 {[%clk 0:01:21]} 35. Bxd4 {[%clk 0:00:34]}  Qc7 {[%clk 0:01:17]} 36. Ra1 {[%clk 0:00:31]}  c3 {[%clk 0:01:15]} 37. Bxc3 {[%clk 0:00:29]}  Ne6 {[%clk 0:01:07]} 38. Rd1 {[%clk 0:00:24]}  Ba4 {[%clk 0:01:05]} 39. Rd2 {[%clk 0:00:24]}  Bb5 {[%clk 0:01:02]} 40. Qf2 {[%clk 0:00:23]}  Kh7 {[%clk 0:00:58]} 41. Qg3 {[%clk 0:00:20]}  Qc5+ {[%clk 0:00:58]} 42. Kh1 {[%clk 0:00:20]}  Qe3 {[%clk 0:00:58]} 43. h4 {[%clk 0:00:20]}  h5 {[%clk 0:00:42]} 44. Rd6 {[%clk 0:00:20]}  Bc4 {[%clk 0:00:38]} 45. Rxe6 {[%clk 0:00:18]}  Qxc3 {[%clk 0:00:25]} 46. bxc3 {[%clk 0:00:17]}  Bxe6 {[%clk 0:00:25]} 47. Qe5 {[%clk 0:00:18]}  g6 {[%clk 0:00:25]} 48. Qf6 {[%clk 0:00:17]}  Kg8 {[%clk 0:00:25]} 49. Kh2 {[%clk 0:00:18]}  Kf8 {[%clk 0:00:26]} 50. Kg3 {[%clk 0:00:19]}  Ke8 {[%clk 0:00:27]} 51. Kf4 {[%clk 0:00:20]}  Kd7 {[%clk 0:00:27]} 52. Kg5 {[%clk 0:00:21]}  Kc6 {[%clk 0:00:28]} 53. f4 {[%clk 0:00:18]}  Kc5 {[%clk 0:00:29]} 54. f5 {[%clk 0:00:19]} 1-0


[Site "https://www.chess.com"]

[Event "Titled Tuesday Blitz December 13 Late 2022"]
[White "Young, Ryan"]
[Black "Ehlvest, Jaan"]
[WhiteFideId "2049945"]
[BlackFideId "4500016"]
[WhiteElo "2290"]
[BlackElo "2430"]
[Result "0-1"]
[Round "01"]
[TimeControl "180+1"]
[Date "2022.12.14"]
[WhiteClock "0:00:10"]
[BlackClock "0:00:26"]

1. d4 {[%clk 0:02:55]}  d5 {[%clk 0:02:58]} 2. c4 {[%clk 0:02:49]}  e6 {[%clk 0:02:57]} 3. Nf3 {[%clk 0:02:47]}  Nf6 {[%clk 0:02:57]} 4. Nc3 {[%clk 0:02:47]}  Nbd7 {[%clk 0:02:56]} 5. Bg5 {[%clk 0:02:42]}  Be7 {[%clk 0:02:54]} 6. e3 {[%clk 0:02:41]}  O-O {[%clk 0:02:54]} 7. Qc2 {[%clk 0:02:39]}  h6 {[%clk 0:02:53]} 8. Bh4 {[%clk 0:02:38]}  c5 {[%clk 0:02:50]} 9. cxd5 {[%clk 0:02:37]}  Nxd5 {[%clk 0:02:49]} 10. Bxe7 {[%clk 0:02:35]}  Nxe7 {[%clk 0:02:49]} 11. Bd3 {[%clk 0:02:36]}  cxd4 {[%clk 0:02:48]} 12. Nxd4 {[%clk 0:02:37]}  Nc5 {[%clk 0:02:40]} 13. Be2 {[%clk 0:02:37]}  e5 {[%clk 0:02:40]} 14. Nb3 {[%clk 0:02:36]}  Bf5 {[%clk 0:02:33]} 15. Qd1 {[%clk 0:02:22]}  Qxd1+ {[%clk 0:01:59]} 16. Rxd1 {[%clk 0:02:21]}  Nxb3 {[%clk 0:01:58]} 17. axb3 {[%clk 0:02:19]}  Rfd8 {[%clk 0:01:54]} 18. O-O {[%clk 0:02:15]}  Bc2 {[%clk 0:01:54]} 19. Rxd8+ {[%clk 0:02:13]}  Rxd8 {[%clk 0:01:54]} 20. Bd1 {[%clk 0:02:13]}  Rd2 {[%clk 0:01:52]} 21. Bxc2 {[%clk 0:01:49]}  Rxc2 {[%clk 0:01:51]} 22. Rb1 {[%clk 0:01:47]}  f5 {[%clk 0:01:44]} 23. Kf1 {[%clk 0:01:46]}  Kf7 {[%clk 0:01:42]} 24. b4 {[%clk 0:01:35]}  a6 {[%clk 0:01:37]} 25. b5 {[%clk 0:01:34]}  axb5 {[%clk 0:01:31]} 26. Nxb5 {[%clk 0:01:34]}  Ke6 {[%clk 0:01:31]} 27. Na3 {[%clk 0:01:34]}  Rc5 {[%clk 0:01:25]} 28. Ke2 {[%clk 0:01:32]}  Nc6 {[%clk 0:01:24]} 29. Kd2 {[%clk 0:01:28]}  Nb4 {[%clk 0:01:15]} 30. Ke2 {[%clk 0:00:53]}  e4 {[%clk 0:01:14]} 31. b3 {[%clk 0:00:46]}  b5 {[%clk 0:01:11]} 32. Rb2 {[%clk 0:00:39]}  g5 {[%clk 0:01:09]} 33. g3 {[%clk 0:00:37]}  Ke5 {[%clk 0:01:06]} 34. Rd2 {[%clk 0:00:33]}  Nd3 {[%clk 0:00:55]} 35. Nc2 {[%clk 0:00:28]}  f4 {[%clk 0:00:49]} 36. gxf4+ {[%clk 0:00:27]}  gxf4 {[%clk 0:00:48]} 37. exf4+ {[%clk 0:00:27]}  Nxf4+ {[%clk 0:00:48]} 38. Kd1 {[%clk 0:00:16]}  Rc3 {[%clk 0:00:43]} 39. b4 {[%clk 0:00:14]}  Nd3 {[%clk 0:00:36]} 40. Ke2 {[%clk 0:00:10]}  Rb3 {[%clk 0:00:35]} 41. Ne3 {[%clk 0:00:07]}  Rxb4 {[%clk 0:00:33]} 42. Rc2 {[%clk 0:00:07]}  Rb2 {[%clk 0:00:27]} 43. Rxb2 {[%clk 0:00:07]}  Nxb2 {[%clk 0:00:27]} 44. Kd2 {[%clk 0:00:08]}  Nc4+ {[%clk 0:00:27]} 45. Nxc4+ {[%clk 0:00:09]}  bxc4 {[%clk 0:00:27]} 46. Kc3 {[%clk 0:00:10]}  Kd5 {[%clk 0:00:27]} 47. h4 {[%clk 0:00:11]}  h5 {[%clk 0:00:26]} 48. Kc2 {[%clk 0:00:08]}  Kd4 {[%clk 0:00:26]} 49. Kd2 {[%clk 0:00:09]}  c3+ {[%clk 0:00:25]} 50. Kc2 {[%clk 0:00:06]}  Kc4 {[%clk 0:00:25]} 51. Kc1 {[%clk 0:00:07]}  Kd3 {[%clk 0:00:25]} 52. Kd1 {[%clk 0:00:07]}  c2+ {[%clk 0:00:25]} 53. Kc1 {[%clk 0:00:08]}  Ke2 {[%clk 0:00:25]} 54. Kxc2 {[%clk 0:00:08]}  Kxf2 {[%clk 0:00:26]} 55. Kc3 {[%clk 0:00:08]}  e3 {[%clk 0:00:26]} 56. Kd4 {[%clk 0:00:09]}  e2 {[%clk 0:00:26]} 57. Ke5 {[%clk 0:00:10]} 0-1


[Site "https://www.chess.com"]

[Event "Titled Tuesday Blitz December 13 Late 2022"]
[White "Zhu, Jiner"]
[Black "Albertini, Luca"]
[WhiteFideId "8608059"]
[BlackFideId "847038"]
[WhiteElo "2384"]
[BlackElo "2207"]
[Result "0-1"]
[Round "01"]
[TimeControl "180+1"]
[Date "2022.12.14"]
[WhiteClock "0:00:01"]
[BlackClock "0:00:21"]

1. e4 {[%clk 0:02:56]}  e5 {[%clk 0:02:43]} 2. Nf3 {[%clk 0:02:56]}  Nc6 {[%clk 0:02:42]} 3. Bc4 {[%clk 0:02:53]}  Bc5 {[%clk 0:02:41]} 4. O-O {[%clk 0:02:51]}  Nf6 {[%clk 0:02:39]} 5. d3 {[%clk 0:02:44]}  d6 {[%clk 0:02:39]} 6. c3 {[%clk 0:02:42]}  Bg4 {[%clk 0:02:38]} 7. Nbd2 {[%clk 0:02:40]}  h6 {[%clk 0:02:36]} 8. Bb3 {[%clk 0:02:38]}  Qd7 {[%clk 0:02:34]} 9. Re1 {[%clk 0:02:36]}  Bb6 {[%clk 0:02:31]} 10. Nf1 {[%clk 0:02:35]}  O-O-O {[%clk 0:02:29]} 11. h3 {[%clk 0:02:23]}  Bxh3 {[%clk 0:02:25]} 12. gxh3 {[%clk 0:02:22]}  Qxh3 {[%clk 0:02:25]} 13. N3h2 {[%clk 0:02:19]}  Kb8 {[%clk 0:02:03]} 14. Be3 {[%clk 0:02:18]}  g5 {[%clk 0:02:00]} 15. Bxb6 {[%clk 0:02:15]}  axb6 {[%clk 0:01:58]} 16. Re3 {[%clk 0:02:14]}  Qd7 {[%clk 0:01:55]} 17. Rf3 {[%clk 0:02:13]}  Qe7 {[%clk 0:01:51]} 18. Ne3 {[%clk 0:02:05]}  Rdg8 {[%clk 0:01:32]} 19. Nf5 {[%clk 0:02:01]}  Qd8 {[%clk 0:01:31]} 20. Bxf7 {[%clk 0:01:58]}  Rf8 {[%clk 0:01:29]} 21. Bb3 {[%clk 0:01:57]}  g4 {[%clk 0:01:25]} 22. Re3 {[%clk 0:01:53]}  h5 {[%clk 0:01:24]} 23. Kh1 {[%clk 0:01:47]}  Ne7 {[%clk 0:01:16]} 24. Be6 {[%clk 0:01:43]}  Ng6 {[%clk 0:01:15]} 25. a4 {[%clk 0:01:40]}  Nf4 {[%clk 0:01:14]} 26. Bb3 {[%clk 0:01:40]}  Nh7 {[%clk 0:01:14]} 27. a5 {[%clk 0:01:35]}  b5 {[%clk 0:01:13]} 28. a6 {[%clk 0:01:35]}  b6 {[%clk 0:01:13]} 29. a7+ {[%clk 0:01:34]}  Ka8 {[%clk 0:01:13]} 30. d4 {[%clk 0:01:27]}  Re8 {[%clk 0:00:55]} 31. Re1 {[%clk 0:01:12]}  Ng5 {[%clk 0:00:53]} 32. Qd2 {[%clk 0:01:01]}  Ngh3 {[%clk 0:00:50]} 33. Rf1 {[%clk 0:00:35]}  Qd7 {[%clk 0:00:49]} 34. Ne3 {[%clk 0:00:25]}  c6 {[%clk 0:00:46]} 35. Nf5 {[%clk 0:00:24]}  d5 {[%clk 0:00:26]} 36. dxe5 {[%clk 0:00:23]}  Rxe5 {[%clk 0:00:24]} 37. Qd4 {[%clk 0:00:21]}  Rhe8 {[%clk 0:00:23]} 38. Qxb6 {[%clk 0:00:20]}  Rxe4 {[%clk 0:00:21]} 39. Nd4 {[%clk 0:00:15]}  Rc8 {[%clk 0:00:20]} 40. Bc2 {[%clk 0:00:11]}  Re5 {[%clk 0:00:19]} 41. Nb3 {[%clk 0:00:06]}  Qc7 {[%clk 0:00:19]} 42. Qxc7 {[%clk 0:00:06]}  Rxc7 {[%clk 0:00:20]} 43. Nc5 {[%clk 0:00:05]}  Rxa7 {[%clk 0:00:20]} 44. Rxa7+ {[%clk 0:00:04]}  Kxa7 {[%clk 0:00:21]} 45. Bd1 {[%clk 0:00:04]}  Kb6 {[%clk 0:00:20]} 46. b4 {[%clk 0:00:04]}  Kc7 {[%clk 0:00:20]} 47. Nb3 {[%clk 0:00:04]}  Ne2 {[%clk 0:00:19]} 48. Kg2 {[%clk 0:00:03]}  Nxc3 {[%clk 0:00:18]} 49. Bc2 {[%clk 0:00:03]}  Nf4+ {[%clk 0:00:18]} 50. Kg3 {[%clk 0:00:03]}  Nfe2+ {[%clk 0:00:19]} 51. Kh4 {[%clk 0:00:03]}  d4 {[%clk 0:00:20]} 52. Bd3 {[%clk 0:00:03]}  Kd6 {[%clk 0:00:19]} 53. Nc5 {[%clk 0:00:03]}  Rxc5 {[%clk 0:00:19]} 54. bxc5+ {[%clk 0:00:03]}  Kxc5 {[%clk 0:00:20]} 55. Re1 {[%clk 0:00:03]}  Nf4 {[%clk 0:00:20]} 56. Bc2 {[%clk 0:00:03]}  Ng2+ {[%clk 0:00:20]} 57. Kxh5 {[%clk 0:00:03]}  Nxe1 {[%clk 0:00:21]} 58. Bb3 {[%clk 0:00:03]}  d3 {[%clk 0:00:22]} 59. Kxg4 {[%clk 0:00:03]}  d2 {[%clk 0:00:22]} 60. Kf4 {[%clk 0:00:03]}  Kb4 {[%clk 0:00:23]} 61. Ke3 {[%clk 0:00:02]}  Nb1 {[%clk 0:00:21]} 62. Bd1 {[%clk 0:00:01]}  Kc3 {[%clk 0:00:21]} 63. Nf1 {[%clk 0:00:02]}  Nc2+ {[%clk 0:00:18]} 64. Ke2 {[%clk 0:00:01]}  Nd4+ {[%clk 0:00:18]} 65. Ke3 {[%clk 0:00:02]}  c5 {[%clk 0:00:19]} 66. f4 {[%clk 0:00:02]}  b4 {[%clk 0:00:19]} 67. Ke4 {[%clk 0:00:01]}  c4 {[%clk 0:00:19]} 68. f5 {[%clk 0:00:01]}  Nxf5 {[%clk 0:00:19]} 69. Kxf5 {[%clk 0:00:02]}  b3 {[%clk 0:00:20]} 70. Ke4 {[%clk 0:00:02]}  Kb2 {[%clk 0:00:21]} 71. Ke3 {[%clk 0:00:01]}  Kc1 {[%clk 0:00:21]} 72. Kd4 {[%clk 0:00:01]}  c3 {[%clk 0:00:21]} 0-1


[Site "https://www.chess.com"]

[Event "Titled Tuesday Blitz December 13 Late 2022"]
[White "Adewumi, Tanitoluwa"]
[Black "Lashkin, Jegor"]
[WhiteFideId "30966396"]
[BlackFideId "13907808"]
[WhiteElo "2502"]
[BlackElo "2368"]
[Result "0-1"]
[Round "02"]
[TimeControl "180+1"]
[Date "2022.12.14"]
[WhiteClock "0:00:01"]
[BlackClock "0:02:18"]

1. e4 {[%clk 0:02:47]}  c5 {[%clk 0:03:00]} 2. Nf3 {[%clk 0:02:08]}  d6 {[%clk 0:03:00]} 3. Bb5+ {[%clk 0:02:08]}  Nd7 {[%clk 0:02:59]} 4. c3 {[%clk 0:02:05]}  Nf6 {[%clk 0:02:58]} 5. Bd3 {[%clk 0:02:05]}  a6 {[%clk 0:02:55]} 6. Bc2 {[%clk 0:02:04]}  b5 {[%clk 0:02:54]} 7. d4 {[%clk 0:02:00]}  Bb7 {[%clk 0:02:55]} 8. Nbd2 {[%clk 0:01:54]}  e6 {[%clk 0:02:49]} 9. O-O {[%clk 0:01:51]}  Be7 {[%clk 0:02:49]} 10. Re1 {[%clk 0:01:47]}  Qc7 {[%clk 0:02:49]} 11. e5 {[%clk 0:01:35]}  dxe5 {[%clk 0:02:50]} 12. dxe5 {[%clk 0:01:35]}  Nd5 {[%clk 0:02:51]} 13. Ne4 {[%clk 0:01:31]}  h6 {[%clk 0:02:48]} 14. a4 {[%clk 0:01:12]}  O-O {[%clk 0:02:35]} 15. Bd2 {[%clk 0:01:08]}  c4 {[%clk 0:02:24]} 16. Qe2 {[%clk 0:00:59]}  Nxe5 {[%clk 0:02:18]} 17. Nxe5 {[%clk 0:00:54]}  Qxe5 {[%clk 0:02:19]} 18. Qg4 {[%clk 0:00:51]}  f5 {[%clk 0:02:15]} 19. Qg3 {[%clk 0:00:02]}  Qxg3 {[%clk 0:02:15]} 20. Nxg3 {[%clk 0:00:02]}  Kf7 {[%clk 0:02:16]} 21. axb5 {[%clk 0:00:02]}  axb5 {[%clk 0:02:17]} 22. Rxa8 {[%clk 0:00:02]}  Rxa8 {[%clk 0:02:18]} 23. b3 {[%clk 0:00:01]}  Ra2 {[%clk 0:02:17]} 24. bxc4 {[%clk 0:00:01]}  bxc4 {[%clk 0:02:18]} 0-1


[Site "https://www.chess.com"]

[Event "Titled Tuesday Blitz December 13 Late 2022"]
[White "Al-Tarboush, Ward"]
[Black "Kravtsiv, Martyn"]
[WhiteFideId "7601450"]
[BlackFideId "14113147"]
[WhiteElo "2557"]
[BlackElo "2833"]
[Result "0-1"]
[Round "02"]
[TimeControl "180+1"]
[Date "2022.12.14"]
[WhiteClock "0:00:02"]
[BlackClock "0:00:08"]

1. e4 {[%clk 0:03:00]}  e5 {[%clk 0:02:59]} 2. Nf3 {[%clk 0:03:01]}  Nc6 {[%clk 0:02:58]} 3. Bb5 {[%clk 0:03:01]}  a6 {[%clk 0:02:58]} 4. Ba4 {[%clk 0:03:01]}  Nf6 {[%clk 0:02:58]} 5. O-O {[%clk 0:03:01]}  Be7 {[%clk 0:02:58]} 6. Qe2 {[%clk 0:03:00]}  b5 {[%clk 0:02:50]} 7. Bb3 {[%clk 0:02:59]}  O-O {[%clk 0:02:50]} 8. c3 {[%clk 0:02:58]}  d5 {[%clk 0:02:49]} 9. d3 {[%clk 0:02:58]}  Re8 {[%clk 0:02:40]} 10. Bg5 {[%clk 0:02:56]}  dxe4 {[%clk 0:02:36]} 11. dxe4 {[%clk 0:02:56]}  h6 {[%clk 0:02:36]} 12. Bc1 {[%clk 0:02:56]}  Bc5 {[%clk 0:02:30]} 13. Nbd2 {[%clk 0:02:54]}  Bb7 {[%clk 0:02:22]} 14. h3 {[%clk 0:02:40]}  Nh5 {[%clk 0:02:19]} 15. Rd1 {[%clk 0:02:21]}  Nf4 {[%clk 0:02:18]} 16. Qf1 {[%clk 0:02:16]}  Qd3 {[%clk 0:01:37]} 17. g3 {[%clk 0:01:53]}  Qxf1+ {[%clk 0:01:36]} 18. Rxf1 {[%clk 0:01:53]}  Nd3 {[%clk 0:01:23]} 19. Ne1 {[%clk 0:01:43]}  Rad8 {[%clk 0:01:15]} 20. Nxd3 {[%clk 0:01:40]}  Rxd3 {[%clk 0:01:16]} 21. Kg2 {[%clk 0:01:37]}  Red8 {[%clk 0:01:16]} 22. Nf3 {[%clk 0:01:28]}  Na5 {[%clk 0:01:05]} 23. Bc2 {[%clk 0:01:08]}  Bxe4 {[%clk 0:01:04]} 24. Bxd3 {[%clk 0:01:08]}  Rxd3 {[%clk 0:01:04]} 25. Be3 {[%clk 0:01:09]}  Bxe3 {[%clk 0:00:56]} 26. fxe3 {[%clk 0:01:10]}  Nc4 {[%clk 0:00:56]} 27. Rf2 {[%clk 0:00:57]}  Rxe3 {[%clk 0:00:53]} 28. Rd1 {[%clk 0:00:55]}  Kh7 {[%clk 0:00:28]} 29. Rd7 {[%clk 0:00:55]}  f6 {[%clk 0:00:20]} 30. b3 {[%clk 0:00:53]}  Nb6 {[%clk 0:00:19]} 31. Rxc7 {[%clk 0:00:51]}  Nd5 {[%clk 0:00:20]} 32. Rc5 {[%clk 0:00:31]}  Nxc3 {[%clk 0:00:19]} 33. g4 {[%clk 0:00:20]}  Nxa2 {[%clk 0:00:16]} 34. Rxa2 {[%clk 0:00:12]}  Rxf3 {[%clk 0:00:16]} 35. Kh2 {[%clk 0:00:12]}  Rxb3 {[%clk 0:00:14]} 36. Rxa6 {[%clk 0:00:12]}  b4 {[%clk 0:00:14]} 37. Rc7 {[%clk 0:00:10]}  Rc3 {[%clk 0:00:14]} 38. Rd7 {[%clk 0:00:03]}  b3 {[%clk 0:00:13]} 39. Raa7 {[%clk 0:00:03]}  b2 {[%clk 0:00:11]} 40. Rxg7+ {[%clk 0:00:04]}  Kh8 {[%clk 0:00:11]} 41. Rgd7 {[%clk 0:00:04]}  Rc8 {[%clk 0:00:10]} 42. Rdb7 {[%clk 0:00:02]}  b1=Q {[%clk 0:00:08]} 43. Rxb1 {[%clk 0:00:01]}  Bxb1 {[%clk 0:00:09]} 44. Rf7 {[%clk 0:00:01]}  Rc6 {[%clk 0:00:09]} 45. Kg3 {[%clk 0:00:02]}  Kg8 {[%clk 0:00:07]} 46. Ra7 {[%clk 0:00:02]}  Bg6 {[%clk 0:00:07]} 47. Kh4 {[%clk 0:00:03]}  Bf7 {[%clk 0:00:07]} 48. Ra8+ {[%clk 0:00:02]}  Kg7 {[%clk 0:00:08]} 49. Ra7 {[%clk 0:00:03]}  Rd6 {[%clk 0:00:08]} 50. Ra3 {[%clk 0:00:03]}  Re6 {[%clk 0:00:08]} 51. g5 {[%clk 0:00:03]}  hxg5+ {[%clk 0:00:08]} 52. Kg4 {[%clk 0:00:04]}  e4 {[%clk 0:00:08]} 53. Kf5 {[%clk 0:00:04]}  Re5+ {[%clk 0:00:08]} 54. Kg4 {[%clk 0:00:04]}  e3 {[%clk 0:00:09]} 55. h4 {[%clk 0:00:02]}  gxh4 {[%clk 0:00:08]} 0-1


[Site "https://www.chess.com"]